[Event "*** Titled Tuesday Blitz"]
[Site "Chess.com"]
[Date "2019.02.05"]
[Round "3"]
[White "Veiso"]
[Black "Babas"]
[Result "0-1"]
[WhiteElo "2374"]
[BlackElo "2331"]
[TimeControl "180+2"]
[EndTime "13:35:37 PST"]
[Termination "Babas won by resignation"]

1. d4 {[%clk 0:03:01.9]} 1... Nf6 {[%clk 0:03:00]} 2. c4 {[%clk 0:03:02.7]} 2...
c5 {[%clk 0:03:01.4]} 3. d5 {[%clk 0:03:03.8]} 3... e5 {[%clk 0:03:02.3]} 4. Nc3
{[%clk 0:03:03.3]} 4... d6 {[%clk 0:03:03.2]} 5. e4 {[%clk 0:03:04.9]} 5... Be7
{[%clk 0:03:05.1]} 6. Be2 {[%clk 0:03:06.2]} 6... h5 {[%clk 0:03:04.7]} 7. Nf3
{[%clk 0:03:03.6]} 7... h4 {[%clk 0:03:04.8]} 8. h3 {[%clk 0:03:03.5]} 8... Nbd7
{[%clk 0:03:05.2]} 9. Bg5 {[%clk 0:03:02.7]} 9... Nh5 {[%clk 0:03:05.4]} 10.
Bxe7 {[%clk 0:02:47.5]} 10... Qxe7 {[%clk 0:03:07.3]} 11. Qd2 {[%clk 0:02:39.7]}
11... Nf8 {[%clk 0:03:02.4]} 12. O-O-O {[%clk 0:02:34.4]} 12... Bd7 {[%clk
0:03:01]} 13. Ne1 {[%clk 0:02:25]} 13... a6 {[%clk 0:02:53.2]} 14. Kb1 {[%clk
0:02:22]} 14... Rb8 {[%clk 0:02:53.1]} 15. a4 {[%clk 0:02:08.4]} 15... Qf6
{[%clk 0:02:35.1]} 16. Bg4 {[%clk 0:02:06.8]} 16... Nf4 {[%clk 0:02:09]} 17.
Bxd7+ {[%clk 0:01:54.8]} 17... Nxd7 {[%clk 0:02:09.7]} 18. g3 {[%clk 0:01:56.1]}
18... hxg3 {[%clk 0:02:09.1]} 19. fxg3 {[%clk 0:01:58]} 19... Rxh3 {[%clk
0:02:00.7]} 20. Rxh3 {[%clk 0:01:44]} 20... Nxh3 {[%clk 0:02:02.6]} 21. Qg2
{[%clk 0:01:43.6]} 21... Ng5 {[%clk 0:01:57.2]} 22. Rd2 {[%clk 0:01:37.4]} 22...
Ke7 {[%clk 0:01:57.4]} 23. Rf2 {[%clk 0:01:38.2]} 23... Qg6 {[%clk 0:01:57.4]}
24. Ka2 {[%clk 0:01:34]} 24... Nf6 {[%clk 0:01:57.4]} 25. Re2 {[%clk 0:01:25.9]}
25... Rh8 {[%clk 0:01:40.6]} 26. Nd3 {[%clk 0:01:19.8]} 26... Qh5 {[%clk
0:01:32.5]} 27. Qf2 {[%clk 0:01:03.8]} 27... Qf3 {[%clk 0:01:25.9]} 28. Qxf3
{[%clk 0:00:23.1]} 28... Nxf3 {[%clk 0:01:27.8]} 29. b4 {[%clk 0:00:23]} 29...
cxb4 {[%clk 0:01:18.5]} 30. Nxb4 {[%clk 0:00:24.9]} 30... Rc8 {[%clk 0:01:15.9]}
31. Rb2 {[%clk 0:00:15.3]} 31... Rxc4 {[%clk 0:01:13.6]} 32. Nd1 {[%clk
0:00:10.3]} 32... Nxe4 {[%clk 0:01:04.5]} 33. a5 {[%clk 0:00:11.4]} 33... Nd4
{[%clk 0:00:53.9]} 34. Nd3 {[%clk 0:00:09.8]} 34... Ra4+ {[%clk 0:00:47]} 35.
Kb1 {[%clk 0:00:10.6]} 35... Nb5 {[%clk 0:00:47.6]} 36. Rc2 {[%clk 0:00:03.9]}
36... Na3+ {[%clk 0:00:48.2]} 0-1

[Event "*** Titled Tuesday Blitz"]
[Site "Chess.com"]
[Date "2019.02.05"]
[Round "3"]
[White "Fy_Rakotomaharo"]
[Black "AryanTari"]
[Result "1-0"]
[WhiteElo "2472"]
[BlackElo "2814"]
[TimeControl "180+2"]
[EndTime "13:35:39 PST"]
[Termination "Fy_Rakotomaharo won on time"]

1. d4 {[%clk 0:03:01.9]} 1... d5 {[%clk 0:02:45]} 2. c4 {[%clk 0:03:00.6]} 2...
dxc4 {[%clk 0:02:46.9]} 3. e3 {[%clk 0:03:01]} 3... e5 {[%clk 0:02:42.5]} 4.
Bxc4 {[%clk 0:03:01.3]} 4... Nc6 {[%clk 0:02:44]} 5. d5 {[%clk 0:02:44.7]} 5...
Na5 {[%clk 0:02:44.3]} 6. Be2 {[%clk 0:02:33.1]} 6... Nf6 {[%clk 0:02:42.1]} 7.
Nc3 {[%clk 0:02:32.8]} 7... c6 {[%clk 0:02:35.8]} 8. e4 {[%clk 0:02:28.8]} 8...
Bb4 {[%clk 0:02:33.7]} 9. Bg5 {[%clk 0:02:19.2]} 9... h6 {[%clk 0:02:27.1]} 10.
Bxf6 {[%clk 0:02:15.8]} 10... Qxf6 {[%clk 0:02:29]} 11. Qa4 {[%clk 0:02:15.8]}
11... Bxc3+ {[%clk 0:02:25.7]} 12. bxc3 {[%clk 0:02:15]} 12... b6 {[%clk
0:02:27.6]} 13. Nf3 {[%clk 0:01:57.1]} 13... O-O {[%clk 0:02:16.5]} 14. O-O
{[%clk 0:01:50.3]} 14... Bg4 {[%clk 0:02:17.3]} 15. c4 {[%clk 0:01:19.6]} 15...
Rac8 {[%clk 0:01:43.1]} 16. h3 {[%clk 0:01:09.5]} 16... Bxf3 {[%clk 0:01:38]}
17. Bxf3 {[%clk 0:01:10.6]} 17... cxd5 {[%clk 0:01:35.3]} 18. cxd5 {[%clk
0:01:12.5]} 18... Rc4 {[%clk 0:01:35.9]} 19. Qd7 {[%clk 0:01:11.5]} 19... Rc3
{[%clk 0:01:02]} 20. Rac1 {[%clk 0:01:08.5]} 20... Ra3 {[%clk 0:00:58.7]} 21.
Rc8 {[%clk 0:00:56.9]} 21... Rxc8 {[%clk 0:00:52.4]} 22. Qxc8+ {[%clk
0:00:57.8]} 22... Kh7 {[%clk 0:00:54.3]} 23. Rd1 {[%clk 0:00:54.9]} 23... Qd6
{[%clk 0:00:25.7]} 24. Qf5+ {[%clk 0:00:28.5]} 24... Kg8 {[%clk 0:00:26.5]} 25.
Rc1 {[%clk 0:00:29.4]} 25... g6 {[%clk 0:00:23.6]} 26. Qc8+ {[%clk 0:00:25.1]}
26... Kg7 {[%clk 0:00:23.3]} 27. Qe8 {[%clk 0:00:22.5]} 27... Rxa2 {[%clk
0:00:11.1]} 28. Rc8 {[%clk 0:00:21.4]} 28... Kf6 {[%clk 0:00:12.1]} 29. h4
{[%clk 0:00:20.8]} 29... Ra1+ {[%clk 0:00:05.3]} 30. Kh2 {[%clk 0:00:21.5]} 1-0

[Event "*** Titled Tuesday Blitz"]
[Site "Chess.com"]
[Date "2019.02.05"]
[Round "3"]
[White "BogdanDeac"]
[Black "Bayernbk"]
[Result "1-0"]
[WhiteElo "2740"]
[BlackElo "2416"]
[TimeControl "180+2"]
[EndTime "13:35:41 PST"]
[Termination "BogdanDeac won by resignation"]

1. e4 {[%clk 0:03:01.9]} 1... e6 {[%clk 0:03:00.7]} 2. d4 {[%clk 0:03:01.7]}
2... d5 {[%clk 0:03:02.3]} 3. Bd3 {[%clk 0:03:03]} 3... c5 {[%clk 0:03:02.8]} 4.
exd5 {[%clk 0:03:03.7]} 4... exd5 {[%clk 0:03:00.9]} 5. Nf3 {[%clk 0:03:03.7]}
5... c4 {[%clk 0:02:55.5]} 6. Be2 {[%clk 0:03:04.1]} 6... Nc6 {[%clk 0:02:57]}
7. O-O {[%clk 0:03:05.2]} 7... Nf6 {[%clk 0:02:58]} 8. Re1 {[%clk 0:02:58.3]}
8... Be7 {[%clk 0:02:58.5]} 9. b3 {[%clk 0:02:57.9]} 9... cxb3 {[%clk
0:02:58.4]} 10. axb3 {[%clk 0:02:59.8]} 10... O-O {[%clk 0:02:59.7]} 11. Bd3
{[%clk 0:03:00.4]} 11... Bg4 {[%clk 0:02:59.3]} 12. c3 {[%clk 0:03:00.3]} 12...
Re8 {[%clk 0:02:48.8]} 13. Nbd2 {[%clk 0:03:00.8]} 13... Bd6 {[%clk 0:02:47.4]}
14. Rxe8+ {[%clk 0:03:01]} 14... Qxe8 {[%clk 0:02:48.3]} 15. Nf1 {[%clk
0:03:01]} 15... Ne4 {[%clk 0:02:41.4]} 16. Bb2 {[%clk 0:03:00.7]} 16... f5
{[%clk 0:02:35]} 17. Ne3 {[%clk 0:03:00.6]} 17... Qh5 {[%clk 0:02:29.3]} 18. h3
{[%clk 0:03:00.8]} 18... Bxf3 {[%clk 0:01:57.5]} 19. Qxf3 {[%clk 0:02:59.7]}
19... Qxf3 {[%clk 0:01:59]} 20. gxf3 {[%clk 0:03:00.5]} 20... Nd2 {[%clk
0:02:00.4]} 21. Nxf5 {[%clk 0:02:43.1]} 21... Bf4 {[%clk 0:01:59.1]} 22. Kg2
{[%clk 0:02:36.1]} 22... Nxb3 {[%clk 0:01:51.3]} 23. Re1 {[%clk 0:02:36]} 23...
Kf7 {[%clk 0:01:38.3]} 24. Ba3 {[%clk 0:02:32.6]} 24... Rd8 {[%clk 0:01:25.5]}
25. c4 {[%clk 0:02:17.2]} 25... Nbxd4 {[%clk 0:01:02.2]} 26. Nxd4 {[%clk
0:02:16]} 26... Nxd4 {[%clk 0:01:02.2]} 27. Re7+ {[%clk 0:02:17.9]} 27... Kf6
{[%clk 0:00:59.5]} 28. Rxb7 {[%clk 0:02:18.5]} 28... Nc6 {[%clk 0:00:32.7]} 29.
cxd5 {[%clk 0:01:59.6]} 29... Rxd5 {[%clk 0:00:34.6]} 30. Be4 {[%clk 0:02:00.4]}
30... Rg5+ {[%clk 0:00:33.7]} 31. Kf1 {[%clk 0:02:01.2]} 31... Ra5 {[%clk
0:00:34]} 32. Bf8 {[%clk 0:02:01.8]} 32... Ne5 {[%clk 0:00:24.9]} 33. Bxg7+
{[%clk 0:01:56.5]} 33... Ke6 {[%clk 0:00:26.3]} 34. Kg2 {[%clk 0:01:45.5]} 34...
Ra2 {[%clk 0:00:23.3]} 35. Bxh7 {[%clk 0:01:43.8]} 35... Rd2 {[%clk 0:00:15.7]}
36. Rxa7 {[%clk 0:01:30.3]} 36... Rb2 {[%clk 0:00:02.6]} 37. Bg8+ {[%clk
0:01:13]} 37... Kf5 {[%clk 0:00:03.9]} 38. Ra6 {[%clk 0:01:07.2]} 38... Rd2
{[%clk 0:00:03.3]} 39. Rf6+ {[%clk 0:01:06.5]} 39... Kg5 {[%clk 0:00:04.7]} 40.
h4+ {[%clk 0:01:07.4]} 40... Kxh4 {[%clk 0:00:05.2]} 1-0

[Event "*** Titled Tuesday Blitz"]
[Site "Chess.com"]
[Date "2019.02.05"]
[Round "3"]
[White "MateusViageiro"]
[Black "Jooonaaas1996"]
[Result "0-1"]
[WhiteElo "2184"]
[BlackElo "2292"]
[TimeControl "180+2"]
[EndTime "13:35:43 PST"]
[Termination "Jooonaaas1996 won by checkmate"]

1. e4 {[%clk 0:03:01.9]} 1... c5 {[%clk 0:02:57.9]} 2. Nf3 {[%clk 0:03:01.1]}
2... g6 {[%clk 0:02:57.7]} 3. g3 {[%clk 0:03:00.8]} 3... Bg7 {[%clk 0:02:58]} 4.
Bg2 {[%clk 0:03:01.7]} 4... Nc6 {[%clk 0:02:59.1]} 5. O-O {[%clk 0:03:03]} 5...
d6 {[%clk 0:02:59.5]} 6. c3 {[%clk 0:03:04]} 6... Bg4 {[%clk 0:02:56]} 7. h3
{[%clk 0:03:03.2]} 7... Bxf3 {[%clk 0:02:52.3]} 8. Qxf3 {[%clk 0:03:01.4]} 8...
Nf6 {[%clk 0:02:44.8]} 9. d3 {[%clk 0:03:02.3]} 9... O-O {[%clk 0:02:33.7]} 10.
Nd2 {[%clk 0:03:03.2]} 10... Rb8 {[%clk 0:02:03.9]} 11. a4 {[%clk 0:03:02.4]}
11... a6 {[%clk 0:02:04]} 12. Qe2 {[%clk 0:02:56.9]} 12... b5 {[%clk 0:02:02.4]}
13. f4 {[%clk 0:02:51.7]} 13... Nd7 {[%clk 0:01:32]} 14. e5 {[%clk 0:02:43.4]}
14... Qc7 {[%clk 0:01:26]} 15. e6 {[%clk 0:02:43.2]} 15... Nf6 {[%clk
0:01:19.3]} 16. axb5 {[%clk 0:02:28]} 16... axb5 {[%clk 0:01:19.4]} 17. Ne4
{[%clk 0:02:28.1]} 17... Nxe4 {[%clk 0:01:19.7]} 18. Qxe4 {[%clk 0:02:21.2]}
18... Nd8 {[%clk 0:01:07]} 19. exf7+ {[%clk 0:02:21]} 19... Nxf7 {[%clk
0:01:01.8]} 20. Bd2 {[%clk 0:02:10.3]} 20... Kh8 {[%clk 0:00:58.8]} 21. Kh2
{[%clk 0:02:02.7]} 21... Nh6 {[%clk 0:00:58.7]} 22. Rfe1 {[%clk 0:01:59.3]}
22... Rbe8 {[%clk 0:00:55]} 23. Ra6 {[%clk 0:01:55.9]} 23... e5 {[%clk 0:00:43]}
24. Qc6 {[%clk 0:01:51.8]} 24... Qxc6 {[%clk 0:00:30.4]} 25. Bxc6 {[%clk
0:01:51.1]} 25... Rb8 {[%clk 0:00:26.9]} 26. Kg2 {[%clk 0:01:41.2]} 26... exf4
{[%clk 0:00:21]} 27. Bxf4 {[%clk 0:01:40.4]} 27... Nf5 {[%clk 0:00:22.3]} 28.
Be4 {[%clk 0:01:31.7]} 28... Rbe8 {[%clk 0:00:20.1]} 29. Rea1 {[%clk 0:01:01.9]}
29... b4 {[%clk 0:00:18.5]} 30. g4 {[%clk 0:00:47.7]} 30... Nh4+ {[%clk
0:00:18.9]} 31. Kg3 {[%clk 0:00:48.6]} 31... bxc3 {[%clk 0:00:19.6]} 32. bxc3
{[%clk 0:00:38.8]} 32... Bxc3 {[%clk 0:00:19.8]} 33. Bxd6 {[%clk 0:00:37.5]}
33... g5 {[%clk 0:00:18.2]} 34. Bxf8 {[%clk 0:00:36.4]} 34... Rxf8 {[%clk
0:00:20.1]} 35. Rc1 {[%clk 0:00:35]} 35... Be5# {[%clk 0:00:21.6]} 0-1

[Event "*** Titled Tuesday Blitz"]
[Site "Chess.com"]
[Date "2019.02.05"]
[Round "3"]
[White "Quiet_Desperation"]
[Black "severomorskij"]
[Result "0-1"]
[WhiteElo "2403"]
[BlackElo "2716"]
[TimeControl "180+2"]
[EndTime "13:35:46 PST"]
[Termination "severomorskij won by resignation"]

1. e4 {[%clk 0:02:59.9]} 1... c5 {[%clk 0:03:00.1]} 2. d4 {[%clk 0:03:00.5]}
2... cxd4 {[%clk 0:03:00.1]} 3. c3 {[%clk 0:03:02]} 3... d3 {[%clk 0:02:59.7]}
4. Bxd3 {[%clk 0:03:02.8]} 4... Nc6 {[%clk 0:03:01]} 5. Nf3 {[%clk 0:03:04.3]}
5... g6 {[%clk 0:03:02.3]} 6. Bc4 {[%clk 0:03:02.9]} 6... Bg7 {[%clk 0:03:00.8]}
7. O-O {[%clk 0:03:03.8]} 7... d6 {[%clk 0:03:00.6]} 8. h3 {[%clk 0:03:02.6]}
8... Nf6 {[%clk 0:03:00.9]} 9. Re1 {[%clk 0:03:04]} 9... O-O {[%clk 0:03:01.7]}
10. Na3 {[%clk 0:03:05.5]} 10... b6 {[%clk 0:02:59]} 11. Bg5 {[%clk 0:03:05.1]}
11... Bb7 {[%clk 0:02:59.7]} 12. Qd2 {[%clk 0:03:04.8]} 12... a6 {[%clk
0:02:52.9]} 13. Bh6 {[%clk 0:03:05.2]} 13... b5 {[%clk 0:02:50.9]} 14. Bb3
{[%clk 0:03:01.7]} 14... Na5 {[%clk 0:02:38]} 15. Bc2 {[%clk 0:02:58.5]} 15...
Qc7 {[%clk 0:02:34.7]} 16. Rad1 {[%clk 0:02:54.4]} 16... Rac8 {[%clk 0:02:34.4]}
17. Bxg7 {[%clk 0:02:51.4]} 17... Kxg7 {[%clk 0:02:35.3]} 18. Nd4 {[%clk
0:02:29.2]} 18... Rfd8 {[%clk 0:02:29.1]} 19. f4 {[%clk 0:02:08.9]} 19... Nc6
{[%clk 0:02:07.1]} 20. Qf2 {[%clk 0:01:40.1]} 20... Nxd4 {[%clk 0:02:05.5]} 21.
Rxd4 {[%clk 0:01:37.3]} 21... e5 {[%clk 0:01:40.8]} 22. Rd2 {[%clk 0:01:08.8]}
22... Qc5 {[%clk 0:01:35.5]} 23. Qxc5 {[%clk 0:00:58.1]} 23... Rxc5 {[%clk
0:01:33.9]} 24. fxe5 {[%clk 0:00:54.7]} 24... Rxe5 {[%clk 0:01:34.1]} 25. Red1
{[%clk 0:00:56.2]} 25... Nxe4 {[%clk 0:01:32.7]} 26. Bxe4 {[%clk 0:00:57.2]}
26... Rxe4 {[%clk 0:01:33.8]} 27. Nc2 {[%clk 0:00:53.3]} 27... Rde8 {[%clk
0:01:29]} 28. Rxd6 {[%clk 0:00:50.1]} 28... Re2 {[%clk 0:01:29.2]} 29. R6d2
{[%clk 0:00:51.1]} 29... Bxg2 {[%clk 0:01:29.1]} 30. Nd4 {[%clk 0:00:42]} 30...
Rxd2 {[%clk 0:01:27.8]} 31. Rxd2 {[%clk 0:00:43.1]} 31... Bxh3 {[%clk 0:01:29]}
32. Nc6 {[%clk 0:00:43.6]} 32... h5 {[%clk 0:01:25.1]} 33. Nb4 {[%clk 0:00:44]}
33... Re6 {[%clk 0:01:19.4]} 34. Nd5 {[%clk 0:00:44.8]} 34... g5 {[%clk
0:01:19]} 35. Nc7 {[%clk 0:00:43]} 35... Re1+ {[%clk 0:01:13.3]} 36. Kf2 {[%clk
0:00:41.4]} 36... Rf1+ {[%clk 0:01:10.2]} 37. Kg3 {[%clk 0:00:42.5]} 37... Bf5
{[%clk 0:01:05.3]} 38. Nxa6 {[%clk 0:00:40.9]} 38... Be4 {[%clk 0:00:58.1]} 39.
Nc5 {[%clk 0:00:38.2]} 39... Ba8 {[%clk 0:00:53.2]} 40. Rd8 {[%clk 0:00:25.4]}
40... Bh1 {[%clk 0:00:53.2]} 41. Rd2 {[%clk 0:00:22.4]} 41... h4+ {[%clk
0:00:48.1]} 42. Kh2 {[%clk 0:00:22.7]} 42... Bc6 {[%clk 0:00:46]} 0-1

[Event "*** Titled Tuesday Blitz"]
[Site "Chess.com"]
[Date "2019.02.05"]
[Round "3"]
[White "MasterKroket"]
[Black "nubair1198"]
[Result "1-0"]
[WhiteElo "2402"]
[BlackElo "2653"]
[TimeControl "180+2"]
[EndTime "13:35:53 PST"]
[Termination "MasterKroket won by checkmate"]

1. d4 {[%clk 0:03:01.9]} 1... Nf6 {[%clk 0:03:00.5]} 2. c4 {[%clk 0:03:03.3]}
2... g6 {[%clk 0:03:02.1]} 3. Nc3 {[%clk 0:03:04.3]} 3... Bg7 {[%clk 0:03:03.3]}
4. e4 {[%clk 0:03:05.6]} 4... d6 {[%clk 0:03:05]} 5. Nf3 {[%clk 0:03:06.9]} 5...
O-O {[%clk 0:03:06.5]} 6. Be2 {[%clk 0:03:08.5]} 6... Na6 {[%clk 0:03:06.9]} 7.
Bg5 {[%clk 0:03:08.3]} 7... h6 {[%clk 0:03:01.6]} 8. Bh4 {[%clk 0:03:09.2]} 8...
c5 {[%clk 0:02:57.9]} 9. d5 {[%clk 0:03:08.7]} 9... e6 {[%clk 0:02:59.4]} 10.
O-O {[%clk 0:03:08.6]} 10... Re8 {[%clk 0:03:00.4]} 11. Nd2 {[%clk 0:02:58.4]}
11... Nc7 {[%clk 0:02:58]} 12. Re1 {[%clk 0:02:53.6]} 12... a6 {[%clk
0:02:50.3]} 13. a4 {[%clk 0:02:52.7]} 13... b6 {[%clk 0:02:51.7]} 14. f4 {[%clk
0:02:40.9]} 14... exd5 {[%clk 0:02:50.6]} 15. cxd5 {[%clk 0:02:38.8]} 15... Rb8
{[%clk 0:02:34.1]} 16. Bf3 {[%clk 0:02:33.4]} 16... g5 {[%clk 0:01:46.3]} 17.
fxg5 {[%clk 0:02:26]} 17... Nh7 {[%clk 0:01:47.6]} 18. e5 {[%clk 0:02:03.4]}
18... hxg5 {[%clk 0:01:43]} 19. Bg3 {[%clk 0:01:50.3]} 19... dxe5 {[%clk
0:01:43.3]} 20. d6 {[%clk 0:01:42.1]} 20... Qxd6 {[%clk 0:01:40.6]} 21. Nc4
{[%clk 0:01:35.5]} 21... Qxd1 {[%clk 0:01:40.6]} 22. Raxd1 {[%clk 0:01:35.8]}
22... Be6 {[%clk 0:01:21.2]} 23. Nxe5 {[%clk 0:01:34.3]} 23... Rbd8 {[%clk
0:01:22.2]} 24. Bc6 {[%clk 0:01:31.3]} 24... Rf8 {[%clk 0:01:10.5]} 25. Ng6
{[%clk 0:01:10.4]} 25... Rxd1 {[%clk 0:01:06.9]} 26. Ne7+ {[%clk 0:01:06.1]}
26... Kh8 {[%clk 0:01:07.7]} 27. Rxd1 {[%clk 0:01:07]} 27... Bd4+ {[%clk
0:01:09.2]} 28. Kh1 {[%clk 0:01:04.4]} 28... Ne8 {[%clk 0:01:07.8]} 29. a5
{[%clk 0:00:44]} 29... bxa5 {[%clk 0:01:07.9]} 30. Ne4 {[%clk 0:00:36.4]} 30...
f5 {[%clk 0:01:06.4]} 31. Nd6 {[%clk 0:00:23.9]} 31... Nxd6 {[%clk 0:00:46.6]}
32. Bxd6 {[%clk 0:00:24.4]} 32... Kg7 {[%clk 0:00:42.8]} 33. Ra1 {[%clk
0:00:21.2]} 33... Bxb2 {[%clk 0:00:37.5]} 34. Rxa5 {[%clk 0:00:22.2]} 34... c4
{[%clk 0:00:39]} 35. Rxa6 {[%clk 0:00:20.4]} 35... Rc8 {[%clk 0:00:40.2]} 36.
Nxc8 {[%clk 0:00:18]} 36... Bxc8 {[%clk 0:00:42.1]} 37. Ra7+ {[%clk 0:00:18.1]}
37... Kg6 {[%clk 0:00:38.2]} 38. Be8+ {[%clk 0:00:19.1]} 38... Kh6 {[%clk
0:00:39.8]} 39. h4 {[%clk 0:00:16.8]} 39... c3 {[%clk 0:00:35.7]} 40. hxg5+
{[%clk 0:00:17.4]} 40... Nxg5 {[%clk 0:00:37.6]} 41. Bf8# {[%clk 0:00:17.1]} 1-0

[Event "*** Titled Tuesday Blitz"]
[Site "Chess.com"]
[Date "2019.02.05"]
[Round "3"]
[White "chenrip"]
[Black "Vamostodorecto"]
[Result "0-1"]
[WhiteElo "2307"]
[BlackElo "2453"]
[TimeControl "180+2"]
[EndTime "13:35:53 PST"]
[Termination "Vamostodorecto won by resignation"]

1. e4 {[%clk 0:03:01.9]} 1... e6 {[%clk 0:03:00.1]} 2. d4 {[%clk 0:03:02.7]}
2... d5 {[%clk 0:03:01.8]} 3. Nc3 {[%clk 0:03:04]} 3... Bb4 {[%clk 0:03:02.3]}
4. e5 {[%clk 0:03:05.1]} 4... c5 {[%clk 0:03:02.7]} 5. a3 {[%clk 0:03:06.3]}
5... Bxc3+ {[%clk 0:03:02.1]} 6. bxc3 {[%clk 0:03:08.2]} 6... Ne7 {[%clk
0:03:01.1]} 7. a4 {[%clk 0:03:09.2]} 7... b6 {[%clk 0:03:00.5]} 8. Nf3 {[%clk
0:03:08.8]} 8... Ba6 {[%clk 0:02:59.9]} 9. Bxa6 {[%clk 0:03:09.2]} 9... Nxa6
{[%clk 0:03:01.8]} 10. O-O {[%clk 0:03:10.3]} 10... O-O {[%clk 0:03:01.4]} 11.
Ba3 {[%clk 0:03:07.4]} 11... Rc8 {[%clk 0:03:00.7]} 12. Qd3 {[%clk 0:03:04.1]}
12... c4 {[%clk 0:02:55.6]} 13. Qd2 {[%clk 0:03:03.9]} 13... Re8 {[%clk
0:02:53.6]} 14. Rfb1 {[%clk 0:02:59.8]} 14... Nb8 {[%clk 0:02:50.3]} 15. g4
{[%clk 0:02:49.6]} 15... Nbc6 {[%clk 0:02:47.8]} 16. h4 {[%clk 0:02:43.5]} 16...
Kh8 {[%clk 0:02:40.2]} 17. Qf4 {[%clk 0:02:42.1]} 17... Ng6 {[%clk 0:02:36]} 18.
Qg3 {[%clk 0:02:42.9]} 18... f5 {[%clk 0:02:29.9]} 19. gxf5 {[%clk 0:02:40.4]}
19... exf5 {[%clk 0:02:28.9]} 20. h5 {[%clk 0:02:34.7]} 20... Nf8 {[%clk
0:02:29.2]} 21. Kg2 {[%clk 0:02:32]} 21... Ne6 {[%clk 0:02:29]} 22. Rh1 {[%clk
0:02:26.1]} 22... Rg8 {[%clk 0:02:17.3]} 23. Rag1 {[%clk 0:02:23.3]} 23... Qe8
{[%clk 0:02:12.1]} 24. Ng5 {[%clk 0:02:09.6]} 24... Ncd8 {[%clk 0:02:12.5]} 25.
f4 {[%clk 0:02:04.4]} 25... Qxa4 {[%clk 0:02:10.1]} 26. Be7 {[%clk 0:01:58.5]}
26... Qxc2+ {[%clk 0:02:06.6]} 27. Kh3 {[%clk 0:01:58.9]} 27... Nxg5+ {[%clk
0:02:04.3]} 28. Qxg5 {[%clk 0:01:54.4]} 28... Ne6 {[%clk 0:01:59.9]} 29. Qg3
{[%clk 0:01:52.3]} 29... Qd3 {[%clk 0:01:58.4]} 30. Qxd3 {[%clk 0:01:45.2]}
30... cxd3 {[%clk 0:02:00.3]} 31. h6 {[%clk 0:01:07.2]} 31... Nxf4+ {[%clk
0:01:49.5]} 32. Kg3 {[%clk 0:01:05.3]} 32... Ne2+ {[%clk 0:01:49.5]} 33. Kf2
{[%clk 0:01:03]} 33... Nxg1 {[%clk 0:01:49.3]} 34. Rxg1 {[%clk 0:01:03.7]} 34...
Rge8 {[%clk 0:01:02.7]} 35. Rxg7 {[%clk 0:01:02.7]} 35... Rc7 {[%clk 0:00:46]}
36. Bf6 {[%clk 0:00:39]} 36... Rxg7 {[%clk 0:00:46.5]} 37. hxg7+ {[%clk
0:00:31.4]} 37... Kg8 {[%clk 0:00:48.4]} 38. Ke3 {[%clk 0:00:33.2]} 38... Kf7
{[%clk 0:00:45.2]} 39. Kxd3 {[%clk 0:00:34]} 39... b5 {[%clk 0:00:44.2]} 40. Kc2
{[%clk 0:00:31]} 40... a5 {[%clk 0:00:44.6]} 41. Kb3 {[%clk 0:00:32.5]} 41...
Ra8 {[%clk 0:00:40.7]} 42. Ka3 {[%clk 0:00:31.4]} 42... h5 {[%clk 0:00:40.3]}
43. Kb3 {[%clk 0:00:32.2]} 43... f4 {[%clk 0:00:39.3]} 0-1

[Event "*** Titled Tuesday Blitz"]
[Site "Chess.com"]
[Date "2019.02.05"]
[Round "3"]
[White "Konavets"]
[Black "pKiLz5Rn9b"]
[Result "1-0"]
[WhiteElo "2836"]
[BlackElo "2737"]
[TimeControl "180+2"]
[EndTime "13:35:58 PST"]
[Termination "Konavets won by resignation"]

1. d4 {[%clk 0:03:01.9]} 1... Nf6 {[%clk 0:02:57.7]} 2. c4 {[%clk 0:02:49]} 2...
e6 {[%clk 0:02:57.9]} 3. Nf3 {[%clk 0:02:50.4]} 3... b6 {[%clk 0:02:56.6]} 4.
Bg5 {[%clk 0:02:51.9]} 4... Bb7 {[%clk 0:02:57.1]} 5. e3 {[%clk 0:02:53.4]} 5...
Be7 {[%clk 0:02:58.1]} 6. Nc3 {[%clk 0:02:54.3]} 6... O-O {[%clk 0:02:59.3]} 7.
Bd3 {[%clk 0:02:55.5]} 7... d5 {[%clk 0:03:00.5]} 8. cxd5 {[%clk 0:02:56.6]}
8... exd5 {[%clk 0:02:55]} 9. O-O {[%clk 0:02:57.3]} 9... Nbd7 {[%clk
0:02:52.6]} 10. Rc1 {[%clk 0:02:57.8]} 10... a6 {[%clk 0:02:53.6]} 11. Re1
{[%clk 0:02:47.6]} 11... Re8 {[%clk 0:02:53.5]} 12. Qc2 {[%clk 0:02:47.4]} 12...
Ne4 {[%clk 0:02:44.3]} 13. Bf4 {[%clk 0:02:45.6]} 13... Bb4 {[%clk 0:02:24.5]}
14. a3 {[%clk 0:02:40.6]} 14... Bxc3 {[%clk 0:02:24.6]} 15. bxc3 {[%clk
0:02:41.2]} 15... c5 {[%clk 0:02:26.3]} 16. c4 {[%clk 0:02:41.9]} 16... dxc4
{[%clk 0:02:23.3]} 17. Bxc4 {[%clk 0:02:41.8]} 17... b5 {[%clk 0:02:24.5]} 18.
Bf1 {[%clk 0:02:38.7]} 18... c4 {[%clk 0:02:25.6]} 19. Red1 {[%clk 0:02:17.7]}
19... Nb6 {[%clk 0:02:19.2]} 20. Ne5 {[%clk 0:02:18.1]} 20... f6 {[%clk
0:02:19.4]} 21. f3 {[%clk 0:02:04.7]} 21... fxe5 {[%clk 0:02:07.6]} 22. dxe5
{[%clk 0:02:04.6]} 22... Qh4 {[%clk 0:02:07.6]} 23. fxe4 {[%clk 0:01:59.7]}
23... g5 {[%clk 0:02:02.3]} 24. g3 {[%clk 0:01:50.7]} 24... Qh5 {[%clk
0:01:29.2]} 25. Rd6 {[%clk 0:01:43.1]} 25... gxf4 {[%clk 0:01:26.6]} 26. Rxb6
{[%clk 0:01:43.8]} 26... Rab8 {[%clk 0:01:05.3]} 27. exf4 {[%clk 0:01:40.2]}
27... Bxe4 {[%clk 0:01:04.2]} 28. Bxc4+ {[%clk 0:01:17.6]} 28... bxc4 {[%clk
0:00:25.1]} 29. Qxc4+ {[%clk 0:01:17.9]} 29... Qf7 {[%clk 0:00:25.5]} 30. Rxb8
{[%clk 0:01:12.4]} 30... Rxb8 {[%clk 0:00:22.1]} 31. Qxe4 {[%clk 0:01:13.5]}
31... Qa7+ {[%clk 0:00:20.6]} 32. Kh1 {[%clk 0:01:13.7]} 32... Qf2 {[%clk
0:00:22.2]} 33. Qg2 {[%clk 0:01:11.1]} 33... Qe3 {[%clk 0:00:22.7]} 34. Rd1
{[%clk 0:01:09.2]} 34... Qxa3 {[%clk 0:00:23.6]} 35. e6 {[%clk 0:01:08.8]} 35...
a5 {[%clk 0:00:24]} 36. Qd5 {[%clk 0:01:08.2]} 36... Qe3 {[%clk 0:00:08.4]} 37.
Qg5+ {[%clk 0:00:34.4]} 37... Kh8 {[%clk 0:00:07.4]} 38. Rd8+ {[%clk 0:00:36]}
38... Rxd8 {[%clk 0:00:07.6]} 39. Qxd8+ {[%clk 0:00:37.9]} 39... Kg7 {[%clk
0:00:09.5]} 40. Qe7+ {[%clk 0:00:39.7]} 1-0